fUST/lending_fUST_20250121
["ID","MTS","AMOUNT","RATE_DAILY","PERIOD"]
[349764379,1737417043554,-710.28,0.00021917,3]
[349764381,1737417043563,-500.0,0.00021917,3]
[349764383,1737417043573,-537.46,0.00021917,3]
[349764385,1737417043582,-500.0,0.00021917,3]
[349764387,1737417043591,-1417.7,0.00021917,3]
[349764389,1737417043600,-500.0,0.00021917,3]
[349764391,1737417043610,-1154.91,0.00021917,3]
[349764393,1737417043619,-502.98786864,0.00021917,3]
[349764395,1737417043628,-205.73188356,0.00021917,3]
[349764737,1737417047075,-0.01830274,0.00021698,2]
[349767341,1737417084396,165.278629,0.00013973,2]
[349767343,1737417209362,738.71746743,0.00019817,2]
[349767344,1737417233790,499.98169726,0.0002,2]
[349767345,1737417329602,2078.00610573,0.00019934,2]
[349767348,1737417631109,160.0,0.0002339,120]
[349767350,1737418018179,-159.89239171,0.00019421,2]
[349767351,1737418018202,-159.89239171,0.00019617,2]
[349767352,1737418018224,-132.87207327,0.00019817,2]
[349767399,1737418232535,-525.91757582,0.00018711,2]
[349767410,1737418232640,-73.1556636,0.00018711,2]
[349767412,1737418232650,-599.07323942,0.000189,2]
[349767414,1737418232659,-300.0,0.00019923,2]
[349767416,1737418232668,-134.00756589,0.00019924,2]
[349767419,1737418232680,-3095.24252621,0.00019924,2]
[349767421,1737418232692,-14520.51987308,0.00019924,2]
[349767597,1737418238436,-308.3566888,0.00019924,2]
[349767599,1737418238448,-409.75397879,0.00019924,2]
[349767604,1737418238487,-1188.48554011,0.00019924,2]
[349767607,1737418238498,-5243.63382712,0.00019924,2]
[349767609,1737418238508,-1446.88341358,0.00019934,2]
[349767611,1737418238518,-236.88796673,0.00020034,2]
[349767613,1737418238530,-3114.7471332,0.00020153,2]
[349767615,1737418238539,-2868.0,0.0002032,2]
[349767617,1737418238549,-500.0,0.00020432,2]
[349767619,1737418238559,-1178.54317091,0.00020525,2]
[349767621,1737418238568,-322.940476,0.00020525,2]
[349767623,1737418238580,-497.606,0.0002108,2]
[349767625,1737418238590,-172.0,0.00021099,2]
[349767627,1737418238600,-8568.01335492,0.00021111,2]
[349767629,1737418238610,-216.37483084,0.00021152,2]
[349767631,1737418238620,-395.0,0.00021215,2]
[349767633,1737418238629,-179.548682,0.00021221,2]
[349767635,1737418238638,-500.0,0.00021274,7]
[349767636,1737418238647,-5000.0,0.00021275,7]
[349767638,1737418238657,-240.6284655,0.00021313,2]
[349767640,1737418238666,-5005.51259781,0.00021503,2]
[349767642,1737418238676,-160.0,0.00021535,3]
[349767645,1737418238686,-249.0,0.00021546,2]
[349767647,1737418238696,-3000.0,0.000216,2]
[349767649,1737418238705,-3000.0,0.0002161,2]
[349767650,1737418238714,-175.789,0.0002161,2]
[349767652,1737418238724,-3000.0,0.0002162,2]
[349767655,1737418238734,-3000.0,0.0002163,2]
[349767657,1737418238744,-3000.0,0.0002164,2]
[349767659,1737418238753,-1521.82369579,0.0002165,2]
[349767661,1737418238763,-3000.0,0.0002165,2]
[349767662,1737418238772,-3000.0,0.0002166,2]
[349767663,1737418238782,-3000.0,0.0002167,2]
[349767664,1737418238791,-3000.0,0.0002168,2]
[349767665,1737418238802,-3000.0,0.0002169,2]
[349767666,1737418238811,-420.0,0.00021696,2]
[349767667,1737418238824,-3000.0,0.000217,2]
[349767668,1737418238833,-3000.0,0.0002171,2]
[349767669,1737418238843,-3000.0,0.0002172,2]
[349767670,1737418238853,-3000.0,0.0002173,2]
[349767671,1737418238862,-3000.0,0.0002174,2]
[349767672,1737418238872,-1204.25738064,0.00021747,2]
[349767673,1737418238882,-3000.0,0.0002175,2]
[349767674,1737418238892,-3000.0,0.0002176,2]
[349767675,1737418238902,-3000.0,0.0002177,2]
[349767676,1737418238911,-3000.0,0.0002178,2]
[349767677,1737418238921,-3000.0,0.0002179,2]
[349767678,1737418238931,-3000.0,0.000218,2]
[349767680,1737418238941,-7000.0,0.000218,2]
[349767682,1737418238951,-620.0,0.000218,2]
[349767684,1737418238962,-3000.0,0.0002181,2]
[349767686,1737418238972,-403.23944727,0.00021817,3]
[349767688,1737418238981,-5663.148401,0.0002182,2]
[349767690,1737418238992,-478.35182242,0.00021916,2]
[349767692,1737418239001,-500.0,0.00021916,2]
[349767694,1737418239011,-7328.6368303,0.00021916,5]
[349767696,1737418239020,-12641.64921219,0.00021917,5]
[349767698,1737418239030,-330.86390414,0.00021917,3]
[349767700,1737418239040,-500.0,0.00021917,3]
[349767702,1737418239050,-500.0,0.00021917,3]
[349767704,1737418239059,-500.0,0.00021917,3]
[349767706,1737418239069,-500.94244147,0.00021917,3]
[349767708,1737418239082,-512.19154465,0.00021917,3]
[349767710,1737418239092,-500.0,0.00021917,3]
[349767712,1737418239102,-506.07222546,0.00021917,3]
[349767715,1737418239112,-506.35461972,0.00021917,3]
[349767717,1737418239121,-500.0,0.00021917,3]
[349767719,1737418239132,-500.0,0.00021917,3]
[349767721,1737418239141,-500.0,0.00021917,3]
[349767723,1737418239150,-500.0,0.00021917,3]
[349767725,1737418239160,-500.0,0.00021917,3]
[349767727,1737418239170,-510.8772051,0.00021917,3]
[349767729,1737418239180,-743.49,0.00021917,3]
[349767731,1737418239190,-500.0,0.00021917,3]
[349767733,1737418239200,-500.0,0.00021917,3]
[349767735,1737418239211,-500.0,0.00021917,3]
[349767737,1737418239220,-500.0,0.00021917,3]
[349767739,1737418239230,-500.0,0.00021917,3]
[349767741,1737418239240,-500.0,0.00021917,3]
[349767743,1737418239249,-347.59831884,0.00021917,3]
[349767745,1737418239259,-500.0,0.00021917,3]
[349767747,1737418239269,-500.0,0.00021917,3]
[349767749,1737418239280,-500.0,0.00021917,3]
[349767751,1737418239290,-406.59965588,0.00021917,3]
[349767753,1737418239299,-500.0,0.00021917,3]
[349767755,1737418239309,-500.0,0.00021917,3]
[349767757,1737418239321,-500.0,0.00021917,3]
[349767759,1737418239331,-715.93,0.00021917,3]
[349767761,1737418239340,-500.0,0.00021917,3]
[349767763,1737418239349,-500.0,0.00021917,3]
[349767765,1737418239359,-294.26811644,0.00021917,3]
[349767767,1737418239369,-380.83430466,0.00021917,2]
[349767770,1737418239379,-500.0,0.00021917,3]
[349767772,1737418239389,-500.0,0.00021917,3]
[349767774,1737418239399,-500.0,0.00021917,3]
[349767776,1737418239408,-505.89063436,0.00021917,3]
[349767778,1737418239419,-504.12760507,0.00021917,3]
[349767780,1737418239428,-500.0,0.00021917,3]
[349767782,1737418239438,-500.0,0.00021917,3]
[349767784,1737418239447,-500.0,0.00021917,3]
[349767785,1737418239457,-500.0,0.00021917,3]
[349767787,1737418239467,-500.0,0.00021917,3]
[349767790,1737418239477,-336.28635912,0.00021917,3]
[349767792,1737418239488,-500.0,0.00021917,3]
[349767794,1737418239500,-500.0,0.00021917,3]
[349767796,1737418239510,-503.82565976,0.00021917,3]
[349767798,1737418239525,-504.84825863,0.00021917,3]
[349767800,1737418239535,-500.0,0.00021917,3]
[349767802,1737418239545,-288.334045,0.00021917,3]
[349767804,1737418239555,-500.0,0.00021917,3]
[349767827,1737418239770,-502.00261353,0.00021917,3]
[349767830,1737418239781,-500.0,0.00021917,3]
[349767832,1737418239792,-500.0,0.00021917,3]
[349767834,1737418239802,-518.71,0.00021917,3]
[349767836,1737418239812,-500.0,0.00021917,3]
[349767837,1737418239823,-500.0,0.00021917,3]
[349767840,1737418239833,-500.0,0.00021917,3]
[349767842,1737418239842,-500.0,0.00021917,3]
[349767844,1737418239851,-502.35372925,0.00021917,3]
[349767846,1737418239861,-500.0,0.00021917,3]
[349767848,1737418239871,-500.0,0.00021917,3]
[349767850,1737418239880,-527.2880816,0.00021917,3]
[349767852,1737418239890,-500.0,0.00021917,3]
[349767855,1737418239900,-500.0,0.00021917,3]
[349767857,1737418239909,-500.0,0.00021917,3]
[349767859,1737418239918,-500.0,0.00021917,3]
[349767861,1737418239927,-513.26487016,0.00021917,3]
[349767863,1737418239937,-793.9,0.00021917,3]
[349767864,1737418239946,-500.0,0.00021917,3]
[349767867,1737418239956,-500.0,0.00021917,3]
[349767869,1737418239965,-467.71885478,0.00021917,3]
[349767871,1737418239975,-500.0,0.00021917,3]
[349767872,1737418239984,-500.0,0.00021917,3]
[349767874,1737418239994,-500.0,0.00021917,3]
[349767877,1737418240003,-555.4717855,0.00021917,3]
[349767878,1737418240012,-500.0,0.00021917,3]
[349767880,1737418240022,-500.0,0.00021917,3]
[349767883,1737418240032,-500.0,0.00021917,3]
[349767885,1737418240042,-500.0,0.00021917,3]
[349767886,1737418240052,-500.0,0.00021917,3]
[349767888,1737418240061,-500.0,0.00021917,3]
[349767890,1737418240072,-874.29,0.00021917,3]
[349767893,1737418240081,-305.87375726,0.00021917,3]
[349767894,1737418240091,-407.35070527,0.00021917,3]
[349767897,1737418240100,-500.0,0.00021917,3]
[349767899,1737418240110,-500.0,0.00021917,3]
[349767900,1737418240119,-500.0,0.00021917,3]
[349767902,1737418240128,-500.0,0.00021917,3]
[349767904,1737418240138,-508.7366158,0.00021917,3]
[349767906,1737418240147,-509.33102999,0.00021917,3]
[349767908,1737418240157,-500.0,0.00021917,3]
[349767910,1737418240167,-500.0,0.00021917,3]
[349767913,1737418240176,-500.0,0.00021917,3]
[349767915,1737418240186,-500.0,0.00021917,3]
[349767917,1737418240196,-500.0,0.00021917,3]
[349767919,1737418240206,-887.77,0.00021917,3]
[349767920,1737418240216,-500.0,0.00021917,3]
[349767922,1737418240226,-500.0,0.00021917,3]
[349767924,1737418240235,-504.23351911,0.00021917,3]
[349767927,1737418240245,-500.0,0.00021917,3]
[349767928,1737418240255,-500.0,0.00021917,3]
[349767930,1737418240265,-500.0,0.00021917,3]
[349767933,1737418240275,-200.0,0.00021917,3]
[349767935,1737418240285,-500.0,0.00021917,3]
[349767937,1737418240295,-512.58249722,0.00021917,3]
[349767939,1737418240306,-500.0,0.00021917,3]
[349767941,1737418240315,-500.0,0.00021917,3]
[349767943,1737418240327,-1132.55,0.00021917,3]
[349767945,1737418240336,-500.0,0.00021917,3]
[349767947,1737418240347,-1377.89,0.00021917,3]
[349767948,1737418240356,-500.0,0.00021917,3]
[349767950,1737418240366,-500.0,0.00021917,3]
[349767952,1737418240376,-684.59,0.00021917,3]
[349767954,1737418240386,-503.29560905,0.00021917,3]
[349767955,1737418240395,-451.1618147,0.00021917,3]
[349767957,1737418240405,-500.0,0.00021917,3]
[349767959,1737418240417,-500.0,0.00021917,3]
[349767961,1737418240427,-500.0,0.00021917,3]
[349767963,1737418240437,-504.47716263,0.00021917,3]
[349767964,1737418240447,-500.0,0.00021917,3]
[349767966,1737418240456,-363.60674763,0.00021917,3]
[349767990,1737418240758,-762.24486379,0.00020219,2]
[349767992,1737418240769,-136.39325237,0.00021917,3]
[349767994,1737418240778,-73.22188384,0.00021917,3]
[349767997,1737418240794,-426.77811616,0.00021917,3]
[349767998,1737418240804,-500.0,0.00021917,3]
[349768000,1737418240813,-500.0,0.00021917,3]
[349768002,1737418240825,-500.0,0.00021917,3]
[349768004,1737418240834,-500.0,0.00021917,3]
[349768005,1737418240843,-1549.61,0.00021917,3]
[349768007,1737418240853,-500.0,0.00021917,3]
[349768009,1737418240863,-506.25039847,0.00021917,3]
[349768011,1737418240872,-500.0,0.00021917,3]
[349768013,1737418240881,-500.0,0.00021917,3]
[349768014,1737418240891,-500.0,0.00021917,3]
[349768016,1737418240900,-500.0,0.00021917,3]
[349768018,1737418240909,-500.0,0.00021917,3]
[349768020,1737418240919,-514.82600701,0.00021917,3]
[349768021,1737418240928,-505.69342096,0.00021917,3]
[349768023,1737418240937,-542.63,0.00021917,3]
[349768025,1737418240947,-500.0,0.00021917,3]
[349768027,1737418240956,-502.53870237,0.00021917,3]
[349768029,1737418240966,-500.0,0.00021917,3]
[349768031,1737418240975,-500.0,0.00021917,3]
[349768033,1737418240984,-508.0313547,0.00021917,3]
[349768034,1737418240993,-500.0,0.00021917,3]
[349768036,1737418241003,-731.16,0.00021917,3]
[349768038,1737418241012,-500.0,0.00021917,3]
[349768040,1737418241021,-500.0,0.00021917,3]
[349768042,1737418241030,-501.56415875,0.00021917,3]
[349768044,1737418241040,-502.77845897,0.00021917,3]
[349768045,1737418241050,-500.0,0.00021917,3]
[349768047,1737418241060,-691.91,0.00021917,3]
[349768049,1737418241069,-500.0,0.00021917,3]
[349768051,1737418241080,-500.0,0.00021917,3]
[349768052,1737418241089,-703.57,0.00021917,3]
[349768054,1737418241100,-500.0,0.00021917,3]
[349768056,1737418241109,-500.0,0.00021917,3]
[349768058,1737418241119,-500.0,0.00021917,3]
[349768060,1737418241130,-500.0,0.00021917,3]
[349768062,1737418241139,-500.0,0.00021917,3]
[349768064,1737418241149,-500.0,0.00021917,3]
[349768065,1737418241158,-500.0,0.00021917,3]
[349768067,1737418241168,-500.0,0.00021917,3]
[349768069,1737418241178,-500.0,0.00021917,3]
[349768071,1737418241187,-500.0,0.00021917,3]
[349768073,1737418241196,-500.0,0.00021917,3]
[349768074,1737418241206,-500.0,0.00021917,3]
[349768076,1737418241216,-618.29460419,0.00021917,3]
[349768078,1737418241226,-500.0,0.00021917,3]
[349768080,1737418241235,-500.0,0.00021917,3]
[349768082,1737418241245,-500.0,0.00021917,3]
[349768084,1737418241254,-1379.47,0.00021917,3]
[349768085,1737418241264,-500.0,0.00021917,3]
[349768087,1737418241274,-500.0,0.00021917,3]
[349768089,1737418241284,-500.0,0.00021917,3]
[349768091,1737418241294,-500.0,0.00021917,3]
[349768093,1737418241304,-500.0,0.00021917,3]
[349768095,1737418241314,-535.9,0.00021917,3]
[349768097,1737418241326,-500.0,0.00021917,3]
[349768098,1737418241335,-500.0,0.00021917,3]
[349768100,1737418241345,-500.0,0.00021917,3]
[349768102,1737418241354,-500.0,0.00021917,3]
[349768104,1737418241364,-500.0,0.00021917,3]
[349768106,1737418241374,-500.0,0.00021917,3]
[349768108,1737418241383,-500.0,0.00021917,3]
[349768109,1737418241392,-500.0,0.00021917,3]
[349768111,1737418241402,-500.0,0.00021917,3]
[349768113,1737418241412,-500.0,0.00021917,3]
[349768115,1737418241423,-1127.62,0.00021917,3]
[349768117,1737418241433,-500.0,0.00021917,3]
[349768119,1737418241442,-500.0,0.00021917,3]
[349768120,1737418241451,-500.0,0.00021917,3]
[349768122,1737418241461,-500.0,0.00021917,3]
[349768124,1737418241470,-505.38579495,0.00021917,3]
[349768126,1737418241480,-505.13748076,0.00021917,3]
[349768128,1737418241490,-500.0,0.00021917,3]
[349768130,1737418241500,-876.07,0.00021917,3]
[349768132,1737418241510,-500.0,0.00021917,3]
[349768134,1737418241522,-500.0,0.00021917,3]
[349768135,1737418241532,-502.1571626,0.00021917,3]
[349768137,1737418241541,-500.0,0.00021917,3]
[349768139,1737418241551,-500.0,0.00021917,3]
[349768141,1737418241562,-538.23756892,0.00021917,3]
[349768143,1737418241573,-423.21366854,0.00021917,3]
[349768145,1737418241582,-500.0,0.00021917,3]
[349768146,1737418241591,-500.0,0.00021917,3]
[349768148,1737418241604,-500.0,0.00021917,3]
[349768150,1737418241614,-500.0,0.00021917,3]
[349768152,1737418241623,-500.0,0.00021917,3]
[349768154,1737418241634,-500.0,0.00021917,3]
[349768156,1737418241644,-500.0,0.00021917,3]
[349768158,1737418241653,-383.93752786,0.00021917,3]
[349768160,1737418241663,-500.0,0.00021917,3]
[349768162,1737418241672,-500.0,0.00021917,3]
[349768164,1737418241681,-500.0,0.00021917,3]
[349768165,1737418241691,-500.0,0.00021917,3]
[349768167,1737418241701,-500.0,0.00021917,3]
[349768169,1737418241710,-500.0,0.00021917,3]
[349768171,1737418241719,-513.24,0.00021917,3]
[349768173,1737418241729,-500.0,0.00021917,3]
[349768175,1737418241742,-667.53,0.00021917,3]
[349768177,1737418241751,-500.0,0.00021917,3]
[349768179,1737418241761,-500.0,0.00021917,3]
[349768180,1737418241771,-500.0,0.00021917,3]
[349768182,1737418241781,-500.0,0.00021917,3]
[349768184,1737418241791,-500.0,0.00021917,3]
[349768186,1737418241800,-500.0,0.00021917,3]
[349768188,1737418241810,-500.0,0.00021917,3]
[349768190,1737418241821,-771.08,0.00021917,3]
[349768192,1737418241831,-500.0,0.00021917,3]
[349768193,1737418241840,-500.0,0.00021917,3]
[349768195,1737418241849,-1962.99,0.00021917,2]
[349768197,1737418241859,-500.0,0.00021917,3]
[349768199,1737418241868,-500.0,0.00021917,3]
[349768201,1737418241877,-500.0,0.00021917,3]
[349768202,1737418241887,-500.0,0.00021917,3]
[349768204,1737418241897,-578.08992866,0.00021917,3]
[349768206,1737418241907,-615.68534385,0.00021917,3]
[349768208,1737418241916,-500.0,0.00021917,3]
[349768210,1737418241926,-2517.66,0.00021917,3]
[349768212,1737418241935,-500.0,0.00021917,3]
[349768214,1737418241944,-500.0,0.00021917,3]
[349768216,1737418241953,-500.0,0.00021917,3]
[349768218,1737418241962,-500.0,0.00021917,3]
[349768220,1737418241971,-500.0,0.00021917,3]
[349768222,1737418241981,-4365.67,0.00021917,3]
[349768224,1737418241990,-500.0,0.00021917,3]
[349768226,1737418242000,-500.0,0.00021917,3]
[349768228,1737418242009,-500.0,0.00021917,3]
[349768229,1737418242018,-500.0,0.00021917,3]
[349768230,1737418242028,-500.0,0.00021917,3]
[349768231,1737418242039,-500.0,0.00021917,3]
[349768232,1737418242049,-500.0,0.00021917,3]
[349768233,1737418242059,-1705.39,0.00021917,3]
[349768234,1737418242072,-10861.22,0.00021917,3]
[349768235,1737418242081,-500.0,0.00021917,3]
[349768236,1737418242092,-500.0,0.00021917,3]
[349768237,1737418242102,-552.4095296,0.00021917,3]
[349768238,1737418242113,-1127.6,0.00021917,3]
[349768239,1737418242123,-500.0,0.00021917,3]
[349768240,1737418242133,-513.58038742,0.00021917,3]
[349768241,1737418242143,-500.0,0.00021917,3]
[349768242,1737418242153,-4465.09038416,0.00021917,3]
[349768692,1737418246495,-750.82107256,0.00019725,2]
[349768694,1737418246504,-762.24486373,0.00020791,2]
[349768696,1737418246514,-363.30961584,0.00021917,3]
[349768698,1737418246526,-3305.02,0.00021917,3]
[349768700,1737418246536,-500.0,0.00021917,3]
[349768702,1737418246545,-3003.89669735,0.00021917,3]
[349769780,1737418486701,165.457192,0.00013973,2]
[349769792,1737419349128,-761.84256646,0.00017923,2]
[349769793,1737419349151,-644.81097475,0.00018104,2]
[349769794,1737419363323,1079.78439705,0.00024,120]
[349769795,1737419369228,165.671828,0.00013973,2]
[349769842,1737419438444,-649.8,0.00017567,2]
[349769854,1737419438553,-49.20989349,0.00017567,2]
[349769856,1737419438563,-761.84256646,0.00017744,2]
[349769858,1737419438573,-761.84256646,0.000189,2]
[349769860,1737419438583,-2541.985268,0.00019179,2]
[349769862,1737419438593,-169.366272,0.00019277,2]
[349769864,1737419438603,-423.899154,0.00019371,2]
[349769866,1737419438613,-162.1301093,0.00019379,2]
[349769868,1737419438625,-250.0,0.00019393,2]
[349769870,1737419438635,-288.25873421,0.00019824,2]
[349769872,1737419438645,-1068.12,0.0002,2]
[349769895,1737419438655,-151.0,0.00020084,2]
[349769897,1737419438879,-300.17810825,0.00020084,2]
[349769899,1737419438890,-300.0,0.00020096,2]
[349769901,1737419438901,-2299.08113969,0.00020097,2]
[349770403,1737419443682,-2400.0,0.00020097,2]
[349770715,1737419446681,-1233.44820187,0.00019896,2]
[349770717,1737419446691,-18160.14433561,0.00020097,2]
[349770719,1737419446701,-276.6047141,0.00020173,2]
[349770721,1737419446711,-500.0,0.00020432,2]
[349770723,1737419446720,-761.0479123,0.00020589,2]
[349770725,1737419446729,-176.102,0.00020806,2]
[349770727,1737419446739,-491.022,0.0002082,2]
[349770729,1737419446748,-155.39,0.00020922,2]
[349770731,1737419446757,-395.0,0.00021425,2]
[349770733,1737419446766,-201.4008711,0.00021697,2]
[349770735,1737419446776,-7119.29082043,0.000218,2]
[349770737,1737419446785,-420.0,0.0002188,2]
[349770738,1737419446794,-784.7045,0.0002189,3]
[349770739,1737419446804,-617.77264937,0.00021899,2]
[349770740,1737419446813,-235.72684023,0.00021899,2]
[349770741,1737419446822,-2067.69412972,0.00021899,2]
[349770742,1737419446831,-6320.8246061,0.000219,5]
[349770743,1737419446841,-3664.31841515,0.000219,5]
[349770744,1737419446851,-389936.77910153,0.000219,15]
[349770745,1737419446866,-143349.05961201,0.000219,15]
[349770746,1737419446885,-52538.21468601,0.000219,15]
[349770747,1737419446896,-1424.0322,0.000219,15]
[349770748,1737419446909,-5450.17820482,0.000219,15]
[349770750,1737419446920,-8188.8855537,0.000219,15]
[349771900,1737420393879,165.09617,0.00013973,2]
[349771903,1737420443316,3000.0,0.00024,120]
[349771944,1737420637524,-500.0,0.00017664,2]
[349771946,1737420637535,-500.0,0.00017842,2]
[349771948,1737420637544,-500.0,0.00019336,2]
[349771950,1737420637554,-5033.44820187,0.00019886,2]
[349772041,1737420638636,-800.88919395,0.00019886,2]
[349772046,1737420638693,-2357.31901668,0.00019886,2]
[349772048,1737420638703,-466.569792,0.00019975,2]
[349772050,1737420638713,-500.0,0.00020096,7]
[349772052,1737420638724,-169.088845,0.00020178,2]
[349772054,1737420638734,-500.0,0.00020781,9]
[349772055,1737420638744,-484.451,0.0002082,2]
[349772057,1737420638754,-187.98,0.0002099,2]
[349772059,1737420638764,-155.04,0.00020999,2]
[349772061,1737420638774,-300.0,0.00020999,2]
[349772063,1737420638783,-1400.91509068,0.00021,2]
[349772065,1737420638796,-725.89029364,0.00021,2]
[349772249,1737420640939,-500.0,0.00021,2]
[349772863,1737420646771,-852.62061111,0.0002079,2]
[349772866,1737420646784,-14473.19461568,0.00021,2]
[349772868,1737420646796,-500.0,0.00021466,11]
[349772870,1737420646808,-395.0,0.00021515,2]
[349772873,1737420646820,-500.0,0.00021528,2]
[349772875,1737420646832,-38031.0,0.000218,2]
[349772877,1737420646844,-223.71063018,0.000218,2]
[349772879,1737420646856,-6407.36173836,0.000218,2]
[349772881,1737420646868,-536.83644119,0.00021805,2]
[349772884,1737420646880,-500.0,0.00021873,2]
[349772886,1737420646893,-620.39758317,0.00021873,2]
[349772888,1737420646906,-169.82479603,0.00021899,2]
[349772890,1737420646919,-3160.41230305,0.000219,5]
[349772892,1737420646931,-1832.15920758,0.000219,5]
[349772895,1737420646944,-341429.95532245,0.000219,15]
[349775866,1737420741199,5957.8,0.000167,2]
[349775871,1737421261601,164.774792,0.00013973,2]
[349775952,1737421832254,-1298.08288746,0.00018388,2]
[349775953,1737421832264,-634.03160009,0.000188,2]
[349775954,1737421832273,-1380.94030278,0.000189,2]
[349775956,1737421832284,-500.0,0.00019143,2]
[349775957,1737421832294,-298.08288746,0.00019143,2]
[349775959,1737421832303,-500.0,0.00019336,2]
[349775961,1737421832313,-3163.0,0.0002,2]
[349775962,1737421832323,-169.088845,0.00020065,2]
[349775964,1737421832333,-300.0,0.00020277,2]
[349775965,1737421832342,-4318.57885174,0.00020278,2]
[349775966,1737421832354,-327.54932866,0.00020278,2]
[349776041,1737421838282,-1298.08288746,0.00018204,2]
[349776043,1737421838292,-12402.9069721,0.00020278,2]
[349776045,1737421838302,-364.499354,0.00020446,2]
[349776047,1737421838312,-169.366272,0.00020612,2]
[349776049,1737421838321,-395.0,0.00020812,2]
[349776051,1737421838331,-477.757,0.0002082,2]
[349776053,1737421838340,-500.0,0.00021528,2]
[349776055,1737421838350,-728.88611269,0.00021564,2]
[349776057,1737421838360,-2627.41225141,0.000216,4]
[349776059,1737421838374,-535.58774859,0.000216,4]
[349776061,1737421838384,-160.0,0.00021664,3]
[349776063,1737421838394,-5766.62556456,0.00021817,2]
[349776065,1737421838404,-500.0,0.00021899,7]
[349776067,1737421838413,-1580.20615153,0.000219,5]
[349776069,1737421838423,-916.07960379,0.000219,5]
[349776071,1737421838435,-12594.48676203,0.000219,15]
[349776074,1737421838448,-15220.5185417,0.000219,15]
[349776076,1737421838459,-10632.0228016,0.000219,15]
[349776080,1737421838484,-20312.00100001,0.000219,15]
[349776253,1737421840139,-457.5,0.000219,15]
[349776260,1737421840198,-582.04603108,0.000219,15]
[349776267,1737421840258,-1076.20075559,0.000219,15]
[349778207,1737422165468,164.684928,0.00013973,2]
[349778209,1737422255427,814.33,0.000167,2]
[349778210,1737422284819,814.33,0.00018,30]
[349778288,1737423016579,163.43195409,0.00023698,120]
[349778395,1737423032670,-159.89239171,0.00018478,2]
[349778397,1737423032680,-159.89239171,0.00018665,2]
[349778399,1737423032693,-841.61313881,0.000189,2]
[349778412,1737423032807,-206.09772108,0.000189,2]
[349778414,1737423032817,-338.43824236,0.00019336,2]
[349778417,1737423032828,-161.56175764,0.00019336,2]
[349778419,1737423032838,-167.105536,0.00020274,2]
[349778421,1737423032847,-1592.47208899,0.0002043,5]
[349778422,1737423032856,-300.0,0.00020452,2]
[349778425,1737423032865,-9813.51025211,0.00020453,2]
[349778427,1737423032877,-7261.68902835,0.00020453,2]
[349778430,1737423032899,-3835.96453915,0.00020453,2]
[349778828,1737423038144,-600.65531361,0.00020248,2]
[349778831,1737423038156,-1863.97008829,0.00020453,2]
[349778833,1737423038167,-182.249677,0.00020563,2]
[349778835,1737423038177,-470.521,0.000208,2]
[349778836,1737423038193,-193.06237446,0.00020881,2]
[349778838,1737423038204,-5555.12462332,0.00020893,2]
[349778841,1737423038217,-4877.25151958,0.00020893,2]
[349778843,1737423038227,-660.2815987,0.00021428,2]
[349778845,1737423038237,-500.0,0.00021528,2]
[349778847,1737423038248,-150.35,0.00021597,2]
[349778849,1737423038258,-125.99696384,0.000216,2]
[349778851,1737423038271,-60.00303616,0.000216,2]
[349778853,1737423038281,-186.0,0.000216,3]
[349778855,1737423038291,-155.04,0.000216,2]
[349778857,1737423038302,-185.4685324,0.0002168,2]